{"text_format":"3","workbook":"xlsx","n_sheets":19,"sheets":["FINAL SUMMARY","BONGINSIMBI","EMAKHAZENI","EMPUCUKWENI","DELMAS","J MDAKA","KROOMDRAAI","MANYAZELA","MIDDELBURG","SIPHENDULWE","SIZOFUNDA","CLIFTON","EMOYENI","ENDOTSHENI","LOCHIEL","NHLAZATSHE","NTABANHLE","THUSHANANG","UMZIMVELO"],"read":"whole","date_system":"1900"}

{"sheet":"FINAL SUMMARY","index":0,"n_rows":27,"n_cols":5,"rows_kept":27}
[]
[]
[null,"MPDOE - MAINTENANCE PROJECT - CLUSTER 5 - ACTIVITY SCHEDULE"]
[null,"SUMMARY OF COSTS","BUILDING","PROFESSIONAL\nFEES","TOTAL"]
[1,"BONGINSIMBI SECONDARY SCHOOL",{"$f":"BONGINSIMBI!D30","v":0},null,{"$f":"C5+D5","v":0}]
[{"$f":"A5+1","v":2},"EMAKHAZENI COMBINED BOARDING SCHOOL",{"$f":"EMAKHAZENI!D52","v":0},null,0]
[{"$f":"A6+1","v":3},"EMPUCUKWENI SECONDARY SCHOOL",{"$f":"EMPUCUKWENI!D64","v":0},null,0]
[4,"HOERSKOOL DELMAS",{"$f":"DELMAS!D60","v":0},null,0]
[5,"J MDAKA PRIMARY SCHOOL",{"$f":"'J MDAKA'!D46","v":0},null,0]
[6,"KROOMDRAAI PRIMARY SCHOOL",{"$f":"KROOMDRAAI!D54","v":0},null,0]
[7,"MANYAZELA PRIMARY SCHOOL",{"$f":"MANYAZELA!D20","v":0},null,0]
[8,"MIDDELBURG COMBINED SCHOOL",{"$f":"MIDDELBURG!D21","v":0},null,0]
[9,"SIPHENDULWE PRIMARY SCHOOL",{"$f":"SIPHENDULWE!D66","v":0},null,0]
[10,"SIZOFUNDA PRIMARY SCHOOL",{"$f":"SIZOFUNDA!D51","v":0},null,0]
[11,"CLIFTON PRIMARY SCHOOL",{"$f":"CLIFTON!D17","v":0},null,0]
[12,"EMOYENI COMBINED SCHOOL",{"$f":"EMOYENI!D17","v":0},null,0]
[13,"ENDOTSHENI PRIMARY SCHOOL",{"$f":"ENDOTSHENI!D17","v":0},null,0]
[14,"LOCHIEL PRIMARY SCHOOL",{"$f":"LOCHIEL!D17","v":0},null,0]
[15,"NHLAZATSHE PRIMARY SCHOOL",{"$f":"NHLAZATSHE!D17","v":0},null,0]
[16,"NTABANHLE PRIMARY SCHOOL",{"$f":"NTABANHLE!D17","v":0},null,0]
[17,"THUSHANANG PRIMARY SCHOOL",{"$f":"THUSHANANG!D17","v":0},null,0]
[18,"UMZIMVELO AGRICULTURAL SECONDARY SCHOOL",{"$f":"UMZIMVELO!D17","v":0},null,0]
[]
[]
[null,"Sub-Total",{"$f":"SUM(C5:C24)","v":0},{"$f":"SUM(D5:D24)","v":0},{"$f":"SUM(E5:E24)","v":0}]
[null,"VAT at 15%",{"$f":"C25*15%","v":0},{"$f":"D25*15%","v":0},0]
[null,"TOTAL CARRIED TO FORM OF OFFER & ACCEPTANCE",{"$f":"SUM(C25:C26)","v":0},{"$f":"SUM(D25:D26)","v":0},0]

{"sheet":"BONGINSIMBI","index":1,"n_rows":30,"n_cols":4,"rows_kept":30,"merged":[[1,0,1,3]]}
[]
["BONGINSIMBI SECONDARY SCHOOL"]
["REF","SCOPE","UNIT","PRICE (Excl. VAT)"]
[null,"Rehabilitation of 36  existing waterborne ablutions"]
[null,"Note:Renovations already done to both ablutions and classrooms by DPW"]
[null," ",null,{"$f":"SUM(D8:D29)","v":0}]
[{"v":1,"d":"1.00"},"ALTERATIONS"]
[null,"Provide for any alteration work","Item"]
[]
[{"v":2,"d":"2.00"},"REMOVAL OF  EXISTING ASBESTOS ROOF"]
[null,"Removal of asbestos roofs from existing toilet structure on site by an approved asbestos contractor, including the carting away from site all rubble and including cleaning, disinfecting, etc all in accordance with OHS and Asbestos Regulation, 2001","Item"]
[]
[{"v":3,"d":"3.00"},"ROOF COVERINGS ETC"]
[null,"Roof sheeeting including ridge covers, etc","Item"]
[]
[{"v":4,"d":"4.00"},"CARPENTRY AND JOINERY"]
[null,"Complete roof construction to replace removed asbestos roof and making good all affected areas","Item"]
[]
[{"v":4,"d":"4.00"},"EXTERNAL WORKS"]
[null,"Provision for perimeter fencing, etc.","Item"]
[null,"Provision of 10 000l water tank on elevated steel stand and platform","Item"]
[]
[{"v":5,"d":"5.00"},"PRELIMINARIES AND GENERAL"]
[null,"Contractor to allow for related P&G costs ","Item"]
[]
[{"v":6,"d":"6.00"},"CONTINGENCIES"]
[null,"Add 10% Contingencies to be used at client's discretion","Item"]
[]
[]
[null,"Total Carried to Final Summary",null,{"$f":"D6","v":0}]

{"sheet":"EMAKHAZENI","index":2,"n_rows":52,"n_cols":4,"rows_kept":52,"merged":[[1,0,1,3]]}
[]
["EMAKHAZENI COMBINED BOARDING SCHOOL"]
["REF","SCOPE","UNIT","PRICE (Excl. VAT)"]
[null,"Phase 2: Maintenance of the boarding"]
[]
[null,"BUILDING WORKS",null,{"$f":"SUM(D8:D51)","v":0}]
[{"v":1,"d":"1.00"},"ALTERATIONS"]
[null,"Removal of existing work","Item"]
[null,"Cleaning of external brickwork","Item"]
[]
[{"v":2,"d":"2.00"},"BUILDING WORK"]
[null,"Provide for wet works where necesssary","Item"]
[]
[{"v":3,"d":"3.00"},"ROOF COVERINGS ETC"]
[null,"Roof sheeeting including ridge covers, etc","Item"]
[]
[{"v":4,"d":"4.00"},"CARPENTRY AND JOINERY"]
[null,"Supply and installation of doors, etc.","Item"]
[]
[{"v":5,"d":"5.00"},"CEILINGS, PARTITIONS AND ACCESS FLOORING"]
[null,"Drywall partitioning, etc","Item"]
[]
[{"v":6,"d":"6.00"},"IRONMONGERY"]
[null,"Door and window components, etc","Item"]
[null,"Curtain rails and shower curtain rails","Item"]
[]
[{"v":7,"d":"7.00"},"METALWORK"]
[null,"Steel door frames, security gate, etc","Item"]
[]
[{"v":8,"d":"8.00"},"PLUMBING AND DRAINAGE"]
[null,"Provision of sanitary fittings","Item"]
[]
[{"v":9,"d":"9.00"},"TILING"]
[null,"Tiling to walls, floors and landings, etc","Item"]
[]
[{"v":10,"d":"10.00"},"PAINTWORK"]
[null,"All paintwork to internal and external walls, including paintwork to ceilings, doors and frames, etc.","Item"]
[]
[{"v":11,"d":"11.00"},"EXTERNAL WORKS"]
[null,"Provision for gutters, etc.","Item"]
[]
[{"v":12,"d":"12.00"},"ELECTRICAL WORKS"]
[null,"Inspection and refurbishment of existing electrical works, complete including  the issuing of CoC.","Item"]
[]
[{"v":13,"d":"13.00"},"PRELIMINARIES AND GENERAL"]
[null,"Contractor to allow for related P&G costs ","Item"]
[]
[{"v":14,"d":"14.00"},"CONTINGENCIES"]
[null,"Add 10% Contingencies to be used at client's discretion","Item"]
[]
[]
[null,"Total Carried to Final Summary",null,{"$f":"D6","v":0}]

{"sheet":"EMPUCUKWENI","index":3,"n_rows":64,"n_cols":4,"rows_kept":64,"merged":[[1,0,1,3]]}
[]
["EMPUCUKWENI SECONDARY SCHOOL"]
["REF","SCOPE","UNIT","PRICE (Excl. VAT)"]
[null,"Basic Services: Refurbish 50 waterborne toilets\nOther Facilities: Refurbishment  of existing 34 classrooms,  administration block, School Hall, Library, fence ."]
[]
[null,"BUILDING WORKS",null,{"$f":"SUM(D8:D63)","v":0}]
[{"v":1,"d":"1.00"},"ALTERATIONS"]
[null,"Removal of existing work","Item"]
[]
[{"v":2,"d":"2.00"},"BUILDING WORK"]
[null,"Provide for wet works where necesssary","Item"]
[]
[{"v":3,"d":"3.00"},"WATERPROOFING"]
[null,"Waterproofing to surface beds, etc. ","Item"]
[]
[{"v":4,"d":"4.00"},"ROOF COVERINGS ETC"]
[null,"Roof sheeeting including ridge covers, etc","Item"]
[]
[{"v":5,"d":"5.00"},"CARPENTRY AND JOINERY"]
[null,"Supply and installation of doors, Kitchen cupboards, etc.","Item"]
[]
[{"v":6,"d":"6.00"},"CEILINGS, PARTITIONS AND ACCESS FLOORING"]
[null,"Installation of ceilings, including cornices, trap doors, etc","Item"]
[]
[{"v":7,"d":"7.00"},"FLOOR COVERINGS, PLASTIC LININGS, ETC."]
[null,"Floor coverings, etc","Item"]
[]
[{"v":8,"d":"8.00"},"IRONMONGERY"]
[null,"Door and window components, etc","Item"]
[]
[{"v":9,"d":"9.00"},"METALWORK"]
[null,"Steel security gates, etc","Item"]
[]
[{"v":10,"d":"10.00"},"PLUMBING AND DRAINAGE"]
[null,"Provision of sanitary fittings - install tamper proofing fittings to prevent pilfering,  tamper proofing to match existing","Item"]
[]
[{"v":11,"d":"11.00"},"PLASTERING"]
[null,"Internal, external wall plaster and floor screeds, etc","Item"]
[]
[{"v":12,"d":"12.00"},"GLAZING"]
[null,"4mm Clear float glass to steel panes including putty","Item"]
[]
[{"v":13,"d":"13.00"},"TILING"]
[null,"Tiling to floors and landings, etc","Item"]
[]
[{"v":14,"d":"14.00"},"PAINTWORK"]
[null,"All paintwork to internal and external walls, including paintwork to ceilings, doors and frames, etc.","Item"]
[]
[{"v":15,"d":"15.00"},"EXTERNAL WORKS"]
[null,"Provision for gutters, rainwater downpipes, etc.","Item"]
[null,"Refurbish existing palisade fencing where there are gaps, etc","Item"]
[null,"Provide razor wire on top of perfimeter fencing","Item"]
[]
[{"v":16,"d":"16.00"},"ELECTRICAL WORKS"]
[null,"Inspection and refurbishment of existing electrical works, complete including  the issuing of CoC.","Item"]
[]
[{"v":17,"d":"17.00"},"PRELIMINARIES AND GENERAL"]
[null,"Contractor to allow for related P&G costs ","Item"]
[]
[{"v":18,"d":"18.00"},"CONTINGENCIES"]
[null,"Add 10% Contingencies to be used at client's discretion","Item"]
[]
[]
[null,"Total Carried to Final Summary",null,{"$f":"D6","v":0}]

{"sheet":"DELMAS","index":4,"n_rows":60,"n_cols":4,"rows_kept":60,"merged":[[1,0,1,3]]}
[]
["HOERSKOOL DELMAS "]
["REF","SCOPE","UNIT","PRICE (Excl. VAT)"]
[null,"Refurbishment of existing 33  classrooms, 1 administration block, 1 library, 1 kitchen, 2 computer centres, 4 laboratories, 1 school hall and existing 45 waterborne ablutions."]
[]
[null,"BUILDING WORKS",null,{"$f":"SUM(D8:D59)","v":0}]
[{"v":1,"d":"1.00"},"ALTERATIONS"]
[null,"Removal of existing work","Item"]
[null,"Making good all finishes, etc","item"]
[]
[{"v":2,"d":"2.00"},"BUILDING WORK"]
[null,"Provide for wet works where necesssary","Item"]
[]
[{"v":3,"d":"3.00"},"WATERPROOFING"]
[null,"Waterproofing to surface beds, etc. ","Item"]
[]
[{"v":4,"d":"4.00"},"ROOF COVERINGS ETC"]
[null,"Roof sheeeting including ridge covers, etc","Item"]
[]
[{"v":5,"d":"5.00"},"CARPENTRY AND JOINERY"]
[null,"Supply and installation of doors, Kitchen cupboards, pinboards, etc.","Item"]
[]
[{"v":6,"d":"6.00"},"CEILINGS, PARTITIONS AND ACCESS FLOORING"]
[null,"Installation of ceilings, including cornices, trap doors, etc","Item"]
[]
[{"v":7,"d":"7.00"},"FLOOR COVERINGS, PLASTIC LININGS, ETC."]
[null,"Floor coverings, etc","Item"]
[]
[{"v":8,"d":"8.00"},"IRONMONGERY"]
[null,"Door and window components, etc","Item"]
[]
[{"v":9,"d":"9.00"},"METALWORK"]
[null,"Steel windows, aluminium protectors, etc","Item"]
[]
[{"v":10,"d":"10.00"},"PLUMBING AND DRAINAGE"]
[null,"Provision of sanitary fittings","Item"]
[]
[{"v":11,"d":"11.00"},"PLASTERING"]
[null,"Internal, external wall plaster and floor screeds, etc","Item"]
[]
[{"v":12,"d":"12.00"},"GLAZING"]
[null,"4mm Clear float glass to steel panes including putty","Item"]
[]
[{"v":13,"d":"13.00"},"TILING"]
[null,"Tiling to floors and landings, etc","Item"]
[]
[{"v":14,"d":"14.00"},"PAINTWORK"]
[null,"All paintwork to internal and external walls, including paintwork to ceilings, doors and frames, etc.","Item"]
[]
[{"v":15,"d":"15.00"},"STRUCTURAL INSPECTION"]
[null,"provide for structural inspection if required","Item"]
[]
[{"v":16,"d":"16.00"},"PRELIMINARIES AND GENERAL"]
[null,"Contractor to allow for related P&G costs ","Item"]
[]
[{"v":17,"d":"17.00"},"CONTINGENCIES"]
[null,"Add 10% Contingencies to be used at client's discretion","Item"]
[]
[]
[null,"Total Carried to Final Summary",null,{"$f":"D6","v":0}]

{"sheet":"J MDAKA","index":5,"n_rows":46,"n_cols":4,"rows_kept":46,"merged":[[1,0,1,3]]}
[]
["J MDAKA PRIMARY SCHOOL"]
["REF","SCOPE","UNIT","PRICE (Excl. VAT)"]
[null,"Basic Services: Renovation of 29 waterborne toilets\nOther Facilities: Refurbishment  and renovation of 22  classrooms and refurbishment of 18 waterborne ablutions."]
[]
[null,"BUILDING WORKS",null,{"$f":"SUM(D8:D45)","v":0}]
[{"v":1,"d":"1.00"},"ALTERATIONS"]
[null,"Removal of existing work","Item"]
[null,"Making good all finishes, etc","item"]
[]
[{"v":2,"d":"2.00"},"CARPENTRY AND JOINERY"]
[null,"Supply and installation of doors, etc.","Item"]
[]
[{"v":3,"d":"3.00"},"IRONMONGERY"]
[null,"Door and window components, etc","Item"]
[]
[{"v":4,"d":"4.00"},"METALWORK"]
[null,"Steel gates, etc","Item"]
[]
[{"v":5,"d":"5.00"},"PLUMBING AND DRAINAGE"]
[null,"Provision of sanitary fittings","Item"]
[null,"Repair and make good drainage system, complete including issuing CoC's, etc","Item"]
[]
[{"v":6,"d":"6.00"},"PLASTERING"]
[null,"Internal, external wall plaster and floor screeds, etc","Item"]
[]
[{"v":7,"d":"7.00"},"GLAZING"]
[null,"4mm Clear float glass to steel panes including putty","Item"]
[]
[{"v":8,"d":"8.00"},"TILING"]
[null,"Tiling to floors and landings, etc","Item"]
[]
[{"v":9,"d":"9.00"},"PAINTWORK"]
[null,"All paintwork to internal and external walls, including paintwork to ceilings, doors and frames, etc.","Item"]
[]
[{"v":10,"d":"10.00"},"ELECTRICAL WORKS"]
[null,"Inspection and refurbishment of existing electrical works, complete including  the issuing of CoC.","Item"]
[]
[{"v":11,"d":"11.00"},"PRELIMINARIES AND GENERAL"]
[null,"Contractor to allow for related P&G costs ","Item"]
[]
[{"v":12,"d":"12.00"},"CONTINGENCIES"]
[null,"Add 10% Contingencies to be used at client's discretion","Item"]
[]
[]
[null,"Total Carried to Final Summary",null,{"$f":"D6","v":0}]

{"sheet":"KROOMDRAAI","index":6,"n_rows":54,"n_cols":4,"rows_kept":54,"merged":[[1,0,1,3]]}
[]
["KROOMDRAAI PRIMARY SCHOOL"]
["REF","SCOPE","UNIT","PRICE (Excl. VAT)"]
[null,"Refurbishment of existing 24 classrooms, administration block and fencing"]
[]
[null,"BUILDING WORKS",null,{"$f":"SUM(D8:D53)","v":0}]
[{"v":1,"d":"1.00"},"ALTERATIONS"]
[null,"Removal of existing work","Item"]
[null,"Provide for any other alteration works necessary","item"]
[]
[{"v":2,"d":"2.00"},"ROOF COVERINGS ETC"]
[null,"Roof sheeeting including ridge covers, etc","Item"]
[]
[{"v":3,"d":"3.00"},"CARPENTRY AND JOINERY"]
[null,"Supply and installation of skirtings, pinboards, etc.","Item"]
[]
[{"v":4,"d":"4.00"},"CEILINGS, PARTITIONS AND ACCESS FLOORING"]
[null,"Installation of ceilings, including cornices, trap doors, etc","Item"]
[]
[{"v":5,"d":"5.00"},"FLOOR COVERINGS, PLASTIC LININGS, ETC."]
[null,"Floor coverings, etc","Item"]
[]
[{"v":6,"d":"6.00"},"PLUMBING AND DRAINAGE"]
[null,"Provision of sanitary fittings","Item"]
[null,"Repair and make good drainage system, complete including issuing CoC's, etc","Item"]
[]
[{"v":7,"d":"7.00"},"PLASTERING"]
[null,"Internal, external wall plaster and floor screeds, etc","Item"]
[]
[{"v":8,"d":"8.00"},"TILING"]
[null,"Tiling to floors and landings, etc","Item"]
[]
[{"v":9,"d":"9.00"},"PAINTWORK"]
[null,"All paintwork to internal and external walls, including paintwork to ceilings, doors and frames, etc.","Item"]
[]
[{"v":10,"d":"10.00"},"EXTERNAL WORKS"]
[null,"Provision for perimeter fencing, etc.","Item"]
[null,"Provide boreholes including sinking/drilling, testing and equipping with adequate capacity pump and all accessories and including all pipework to connect up to elevated tanks, etc","Item"]
[null,"Provision of 2 x 10 000l water tanks on elevated steel stand and platform","Item"]
[]
[{"v":11,"d":"11.00"},"ELECTRICAL WORKS"]
[null,"Inspection and refurbishment of existing electrical works, complete including  the issuing of CoC.","Item"]
[]
[{"v":12,"d":"12.00"},"BUILDING WORK"]
[null,"Provide for wet works where necesssary","Item"]
[]
[{"v":13,"d":"13.00"},"PRELIMINARIES AND GENERAL"]
[null,"Contractor to allow for related P&G costs ","Item"]
[]
[{"v":14,"d":"14.00"},"CONTINGENCIES"]
[null,"Add 10% Contingencies to be used at client's discretion","Item"]
[]
[]
[null,"Total Carried to Final Summary",null,{"$f":"D6","v":0}]

{"sheet":"MANYAZELA","index":7,"n_rows":20,"n_cols":4,"rows_kept":20,"merged":[[1,0,1,3]]}
[]
["MANYAZELA PRIMARY SCHOOL"]
["REF","SCOPE","UNIT","PRICE (Excl. VAT)"]
[null,"Remedial works to foundations on 15 enviro loo toilets"]
[]
[null,"BUILDING WORKS",null,{"$f":"SUM(D7:D19)","v":0}]
[{"v":1,"d":"1.00"},"PLASTERING"]
[null,"Internal, external wall plaster and floor screeds, etc","Item"]
[]
[{"v":2,"d":"2.00"},"STRUCTURAL INSPECTION"]
[null,"Budgetary allowance for structural Inspection","Item"]
[]
[{"v":3,"d":"3.00"},"PRELIMINARIES AND GENERAL"]
[null,"Contractor to allow for related P&G costs ","Item"]
[]
[{"v":4,"d":"4.00"},"CONTINGENCIES"]
[null,"Add 10% Contingencies to be used at client's discretion","Item"]
[]
[]
[null,"Total Carried to Final Summary",null,{"$f":"D6","v":0}]

{"sheet":"MIDDELBURG","index":8,"n_rows":21,"n_cols":4,"rows_kept":21,"merged":[[1,0,1,3]]}
[]
["MIDDELBURG COMBINED SCHOOL"]
["REF","SCOPE","UNIT","PRICE (Excl. VAT)"]
[null,"Demolition of redundant structures."]
[]
[null,"BUILDING WORKS",null,{"$f":"SUM(D8:D20)","v":0}]
[{"v":1,"d":"1.00"},"ALTERATIONS"]
[null,"Breaking down and removing surface beds, beams, columns, stairs, bkwalls, etc including carting away from site, etc","Item"]
[null,"Provide for any other alteration works necessary","item"]
[]
[{"v":2,"d":"2.00"},"EARTHWORKS"]
[null,"Excavation, filling, disposal of excavted material, compaction, etc","Item"]
[]
[{"v":3,"d":"3.00"},"PRELIMINARIES AND GENERAL"]
[null,"Contractor to allow for related P&G costs ","Item"]
[]
[{"v":4,"d":"4.00"},"CONTINGENCIES"]
[null,"Add 10% Contingencies to be used at client's discretion","Item"]
[]
[]
[null,"Total Carried to Final Summary",null,{"$f":"D6","v":0}]

{"sheet":"SIPHENDULWE","index":9,"n_rows":66,"n_cols":4,"rows_kept":66,"merged":[[1,0,1,3]]}
[]
["SIPHENDULWE PRIMARY SCHOOL"]
["REF","SCOPE","UNIT","PRICE (Excl. VAT)"]
[null,"Refurbishment of  and renovation of 24 classrooms and administration block. Rehabilitation of 29 waterborne toilets"]
[]
[null,"BUILDING WORKS",null,{"$f":"SUM(D8:D65)","v":0}]
[{"v":1,"d":"1.00"},"ALTERATIONS"]
[null,"Removal of existing work","Item"]
[]
[{"v":2,"d":"2.00"},"WATERPROOFING"]
[null,"Waterproofing to roofs, etc. ","Item"]
[]
[{"v":3,"d":"3.00"},"ROOF COVERING, ETC"]
[null,"Roof sheeeting including ridge covers, etc","Item"]
[]
[{"v":4,"d":"4.00"},"CARPENTRY AND JOINERY"]
[null,"Supply and installation of doors, cupboard doors, pinboards, etc.","Item"]
[]
[{"v":5,"d":"5.00"},"CEILINGS, PARTITIONS AND ACCESS FLOORING"]
[null,"Installation of ceilings, including cornices, trap doors, etc","Item"]
[]
[{"v":6,"d":"6.00"},"PLUMBING AND DRAINAGE"]
[null,"Provision of sanitary fittings","Item"]
[null,"Repair and make good drainage system, complete including issuing CoC's, etc","Item"]
[]
[{"v":7,"d":"7.00"},"FLOOR COVERINGS, PLASTIC LININGS, ETC."]
[null,"Floor coverings, etc","Item"]
[]
[{"v":8,"d":"8.00"},"IRONMONGERY"]
[null,"Door and window components, etc","Item"]
[]
[{"v":9,"d":"9.00"},"METALWORK"]
[null,"Steel windows, etc","Item"]
[]
[{"v":10,"d":"10.00"},"PLASTERING"]
[null,"Internal, external wall plaster and floor screeds, etc","Item"]
[]
[{"v":11,"d":"11.00"},"TILING"]
[null,"Tiling to floors, skirtings, etc","Item"]
[]
[{"v":12,"d":"12.00"},"PAINTWORK"]
[null,"All paintwork to internal and external walls, including paintwork to ceilings, doors and frames, etc.","Item"]
[]
[{"v":13,"d":"13.00"},"EXTERNAL WORKS"]
[null,"Provide boreholes including sinking/drilling, testing and equipping with adequate capacity pump and all accessories and including all pipework to connect up to elevated tanks, etc","Item"]
[null,"Provision of 2 x 10 000l water tanks on elevated steel stand and platform","Item"]
[]
[{"v":14,"d":"14.00"},"ELECTRICAL WORKS"]
[null,"Inspection and refurbishment of existing electrical works, complete including  the issuing of CoC.","Item"]
[]
[{"v":15,"d":"15.00"},"UPGRADE AND REPAIRS TO THE EXISTING KITCHEN"]
[null,"Provide two industrial kitchen sinks including plumbing, fittings, etc","Item"]
[null,"Allow 2 x gas stoves including gas reticulation, storage and accessories including issuing COC's","Item"]
[null,"Allow for adequate shelving","Item"]
[]
[{"v":16,"d":"16.00"},"BUILDING WORK"]
[null,"Provide for wet works where necesssary","Item"]
[]
[{"v":17,"d":"17.00"},"PRELIMINARIES AND GENERAL"]
[null,"Contractor to allow for related P&G costs ","Item"]
[]
[{"v":18,"d":"18.00"},"CONTINGENCIES"]
[null,"Add 10% Contingencies to be used at client's discretion","Item"]
[]
[]
[null,"Total Carried to Final Summary",null,{"$f":"D6","v":0}]

{"sheet":"SIZOFUNDA","index":10,"n_rows":51,"n_cols":4,"rows_kept":51,"merged":[[1,0,1,3]]}
[]
["SIZOFUNDA PRIMARY SCHOOL"]
["REF","SCOPE","UNIT","PRICE (Excl. VAT)"]
[null,"Refurbishment of 7 classrooms"]
[]
[null,"BUILDING WORKS",null,{"$f":"SUM(D8:D50)","v":0}]
[{"v":1,"d":"1.00"},"ALTERATIONS"]
[null,"Removal of existing work","Item"]
[]
[{"v":2,"d":"2.00"},"WATERPROOFING"]
[null,"Waterproofing to roofs, etc. ","Item"]
[]
[{"v":3,"d":"3.00"},"ROOF COVERINGS ETC"]
[null,"Roof sheeeting including ridge covers, etc","Item"]
[]
[{"v":4,"d":"4.00"},"CARPENTRY AND JOINERY"]
[null,"Supply and installation of doors, skirtings, etc.","Item"]
[null,"Supply and install complete roof construction to the storm damaged ablutions for Grade R","Item"]
[]
[{"v":5,"d":"5.00"},"CEILINGS, PARTITIONS AND ACCESS FLOORING"]
[null,"Installation of ceilings, including cornices, trap doors, etc","Item"]
[]
[{"v":6,"d":"6.00"},"FLOOR COVERINGS, PLASTIC LININGS, ETC."]
[null,"Floor coverings, etc","Item"]
[]
[{"v":7,"d":"7.00"},"IRONMONGERY"]
[null,"Door and window components, etc","Item"]
[]
[{"v":8,"d":"8.00"},"METALWORK"]
[null,"Steel gates, windows, blackboards, etc","Item"]
[]
[{"v":9,"d":"9.00"},"PLASTERING"]
[null,"Internal, external wall plaster and floor screeds, etc","Item"]
[]
[{"v":10,"d":"10.00"},"GLAZING"]
[null,"4mm Clear float glass to steel panes including putty","Item"]
[]
[{"v":11,"d":"11.00"},"PAINTWORK"]
[null,"All paintwork to internal and external walls, including paintwork to ceilings, doors and frames, etc.","Item"]
[]
[{"v":12,"d":"12.00"},"ELECTRICAL WORKS"]
[null,"Inspection and refurbishment of existing electrical works, complete including  the issuing of CoC.","Item"]
[]
[{"v":13,"d":"13.00"},"PRELIMINARIES AND GENERAL"]
[null,"Contractor to allow for related P&G costs ","Item"]
[]
[{"v":14,"d":"14.00"},"CONTINGENCIES"]
[null,"Add 10% Contingencies to be used at client's discretion","Item"]
[]
[]
[null,"Total Carried to Final Summary",null,{"$f":"D6","v":0}]

{"sheet":"CLIFTON","index":11,"n_rows":17,"n_cols":4,"rows_kept":17,"merged":[[1,0,1,3]]}
[]
["CLIFTON PRIMARY SCHOOL"]
["REF","SCOPE","UNIT","PRICE (Excl. VAT)"]
[null,"Demolish 6 existing plain pit toilets to and clear the site to acceptable Health and Environmental standards"]
[]
[null,"BUILDING WORKS",null,{"$f":"SUM(D8:D16)","v":0}]
[{"v":1,"d":"1.00"},"DEMOLITION OF  EXISTING TOILETS"]
[null,"Demolition of existing toilets, including the carting away from site all rubble and including rehabilitating and backfilling redundant pits where applicable","Item"]
[]
[{"v":2,"d":"2.00"},"PRELIMINARIES AND GENERAL"]
[null,"Contractor to allow for related P&G costs ","Item"]
[]
[{"v":3,"d":"3.00"},"CONTINGENCIES"]
[null,"Add 10% Contingencies to be used at client's discretion","Item"]
[]
[]
[null,"Total Carried to Final Summary",null,{"$f":"D6","v":0}]

{"sheet":"EMOYENI","index":12,"n_rows":17,"n_cols":4,"rows_kept":17,"merged":[[1,0,1,3]]}
[]
["EMOYENI COMBINED SCHOOL"]
["REF","SCOPE","UNIT","PRICE (Excl. VAT)"]
[null,"Demolish 2 existing plain pit toilets to and clear the site to acceptable Health and Environmental standards"]
[]
[null,"BUILDING WORKS",null,{"$f":"SUM(D8:D16)","v":0}]
[{"v":1,"d":"1.00"},"ALTERATIONS"]
[null,"Cart away material from stock piles on site to a dumping site to be located by the contractor","Item"]
[]
[{"v":2,"d":"2.00"},"PRELIMINARIES AND GENERAL"]
[null,"Contractor to allow for related P&G costs ","Item"]
[]
[{"v":3,"d":"3.00"},"CONTINGENCIES"]
[null,"Add 10% Contingencies to be used at client's discretion","Item"]
[]
[]
[null,"Total Carried to Final Summary",null,{"$f":"D6","v":0}]

{"sheet":"ENDOTSHENI","index":13,"n_rows":17,"n_cols":4,"rows_kept":17,"merged":[[1,0,1,3]]}
[]
["ENDOTSHENI PRIMARY SCHOOL"]
["REF","SCOPE","UNIT","PRICE (Excl. VAT)"]
[null,"Demolish 2 existing plain pit toilets to and clear the site to acceptable Health and Environmental standards"]
[]
[null,"BUILDING WORKS",null,{"$f":"SUM(D8:D16)","v":0}]
[{"v":1,"d":"1.00"},"DEMOLITION OF  EXISTING TOILETS"]
[null,"Demolition of existing toilets, including the carting away from site all rubble and including rehabilitating and backfilling redundant pits where applicable","Item"]
[]
[{"v":2,"d":"2.00"},"PRELIMINARIES AND GENERAL"]
[null,"Contractor to allow for related P&G costs ","Item"]
[]
[{"v":3,"d":"3.00"},"CONTINGENCIES"]
[null,"Add 10% Contingencies to be used at client's discretion","Item"]
[]
[]
[null,"Total Carried to Final Summary",null,{"$f":"D6","v":0}]

{"sheet":"LOCHIEL","index":14,"n_rows":17,"n_cols":4,"rows_kept":17,"merged":[[1,0,1,3]]}
[]
["LOCHIEL PRIMARY SCHOOL"]
["REF","SCOPE","UNIT","PRICE (Excl. VAT)"]
[null,"Demolish 4 existing plain pit toilets to and clear the site to acceptable Health and Environmental standards"]
[]
[null,"BUILDING WORKS",null,{"$f":"SUM(D8:D16)","v":0}]
[{"v":1,"d":"1.00"},"DEMOLITION OF  EXISTING TOILETS"]
[null,"Demolition of existing toilets, including the carting away from site all rubble and including rehabilitating and backfilling redundant pits where applicable","Item"]
[]
[{"v":2,"d":"2.00"},"PRELIMINARIES AND GENERAL"]
[null,"Contractor to allow for related P&G costs ","Item"]
[]
[{"v":3,"d":"3.00"},"CONTINGENCIES"]
[null,"Add 10% Contingencies to be used at client's discretion","Item"]
[]
[]
[null,"Total Carried to Final Summary",null,{"$f":"D6","v":0}]

{"sheet":"NHLAZATSHE","index":15,"n_rows":17,"n_cols":4,"rows_kept":17,"merged":[[1,0,1,3]]}
[]
["NHLAZATSHE PRIMARY SCHOOL"]
["REF","SCOPE","UNIT","PRICE (Excl. VAT)"]
[null,"Demolish 4 existing plain pit toilets to and clear the site to acceptable Health and Environmental standards"]
[]
[null,"BUILDING WORKS",null,{"$f":"SUM(D8:D16)","v":0}]
[{"v":1,"d":"1.00"},"DEMOLITION OF  EXISTING TOILETS"]
[null,"Demolition of existing toilets, including the carting away from site all rubble and including rehabilitating and backfilling redundant pits where applicable","Item"]
[]
[{"v":2,"d":"2.00"},"PRELIMINARIES AND GENERAL"]
[null,"Contractor to allow for related P&G costs ","Item"]
[]
[{"v":3,"d":"3.00"},"CONTINGENCIES"]
[null,"Add 10% Contingencies to be used at client's discretion","Item"]
[]
[]
[null,"Total Carried to Final Summary",null,{"$f":"D6","v":0}]

{"sheet":"NTABANHLE","index":16,"n_rows":17,"n_cols":4,"rows_kept":17,"merged":[[1,0,1,3]]}
[]
["NTABANHLE PRIMARY SCHOOL"]
["REF","SCOPE","UNIT","PRICE (Excl. VAT)"]
[null,"Demolish 16 existing plain pit toilets to and clear the site to acceptable Health and Environmental standards"]
[]
[null,"BUILDING WORKS",null,{"$f":"SUM(D8:D16)","v":0}]
[{"v":1,"d":"1.00"},"DEMOLITION OF  EXISTING TOILETS"]
[null,"Demolition of existing toilets, including the carting away from site all rubble and including rehabilitating and backfilling redundant pits where applicable","Item"]
[]
[{"v":2,"d":"2.00"},"PRELIMINARIES AND GENERAL"]
[null,"Contractor to allow for related P&G costs ","Item"]
[]
[{"v":3,"d":"3.00"},"CONTINGENCIES"]
[null,"Add 10% Contingencies to be used at client's discretion","Item"]
[]
[]
[null,"Total Carried to Final Summary",null,{"$f":"D6","v":0}]

{"sheet":"THUSHANANG","index":17,"n_rows":17,"n_cols":4,"rows_kept":17,"merged":[[1,0,1,3]]}
[]
["THUSHANANG PRIMARY SCHOOL"]
["REF","SCOPE","UNIT","PRICE (Excl. VAT)"]
[null,"Demolish 6 existing plain pit toilets to and clear the site to acceptable Health and Environmental standards"]
[]
[null,"BUILDING WORKS",null,{"$f":"SUM(D8:D16)","v":0}]
[{"v":1,"d":"1.00"},"DEMOLITION OF  EXISTING TOILETS"]
[null,"Demolition of existing toilets, including the carting away from site all rubble and including rehabilitating and backfilling redundant pits where applicable","Item"]
[]
[{"v":2,"d":"2.00"},"PRELIMINARIES AND GENERAL"]
[null,"Contractor to allow for related P&G costs ","Item"]
[]
[{"v":3,"d":"3.00"},"CONTINGENCIES"]
[null,"Add 10% Contingencies to be used at client's discretion","Item"]
[]
[]
[null,"Total Carried to Final Summary",null,{"$f":"D6","v":0}]

{"sheet":"UMZIMVELO","index":18,"n_rows":17,"n_cols":4,"rows_kept":17,"merged":[[1,0,1,3]]}
[]
["UMZIMVELO AGRICULTURE SECONDARY SCHOOL"]
["REF","SCOPE","UNIT","PRICE (Excl. VAT)"]
[null,"Demolish 4 existing plain pit toilets to and clear the site to acceptable Health and Environmental standards"]
[]
[null,"BUILDING WORKS",null,{"$f":"SUM(D8:D16)","v":0}]
[{"v":1,"d":"1.00"},"DEMOLITION OF  EXISTING TOILETS"]
[null,"Demolition of existing toilets, including the carting away from site all rubble and including rehabilitating and backfilling redundant pits where applicable","Item"]
[]
[{"v":2,"d":"2.00"},"PRELIMINARIES AND GENERAL"]
[null,"Contractor to allow for related P&G costs ","Item"]
[]
[{"v":3,"d":"3.00"},"CONTINGENCIES"]
[null,"Add 10% Contingencies to be used at client's discretion","Item"]
[]
[]
[null,"Total Carried to Final Summary",null,{"$f":"D6","v":0}]